[Event "Late-Titled-Tuesday-Blitz-February-06-2024"]
[Site "Chess.com"]
[Date "2024.02.06"]
[Round "8"]
[White "Onthequiet"]
[Black "AmanteDeMoi"]
[Result "0-1"]
[WhiteElo "2461"]
[BlackElo "2595"]
[TimeControl "180+1"]
[EndTime "15:24:28 PST"]
[Termination "AmanteDeMoi won by resignation"]

1. d4 {[%clk 0:03:00]} 1... g6 {[%clk 0:02:04.5]} 2. Nf3 {[%clk 0:02:58.8]} 2...
Bg7 {[%clk 0:02:05.4]} 3. Bg5 {[%clk 0:02:59.2]} 3... d6 {[%clk 0:02:05.7]} 4.
c3 {[%clk 0:02:59.6]} 4... Nd7 {[%clk 0:02:05.8]} 5. Nbd2 {[%clk 0:03:00]} 5...
h6 {[%clk 0:02:05.3]} 6. Bh4 {[%clk 0:02:59.2]} 6... g5 {[%clk 0:02:05.9]} 7.
Bg3 {[%clk 0:02:59.4]} 7... e6 {[%clk 0:02:06.8]} 8. e4 {[%clk 0:02:59.5]} 8...
Ne7 {[%clk 0:02:07.1]} 9. Nc4 {[%clk 0:02:59.5]} 9... Ng6 {[%clk 0:02:07.2]} 10.
Nfd2 {[%clk 0:02:59.2]} 10... h5 {[%clk 0:02:07.1]} 11. h3 {[%clk 0:02:59.2]}
11... h4 {[%clk 0:02:06.7]} 12. Bh2 {[%clk 0:02:53.6]} 12... b5 {[%clk
0:02:07.2]} 13. Ne3 {[%clk 0:02:50.4]} 13... a6 {[%clk 0:02:07.5]} 14. a4 {[%clk
0:02:50.1]} 14... bxa4 {[%clk 0:02:07.9]} 15. Qxa4 {[%clk 0:02:49.7]} 15... O-O
{[%clk 0:02:06.5]} 16. Bd3 {[%clk 0:02:47.9]} 16... c5 {[%clk 0:02:06.5]} 17.
Bxd6 {[%clk 0:02:45.5]} 17... Nb6 {[%clk 0:02:06.8]} 18. Qc6 {[%clk 0:02:43.5]}
18... cxd4 {[%clk 0:01:58.4]} 19. Bxf8 {[%clk 0:02:42]} 19... dxe3 {[%clk
0:01:58.7]} 20. Bxg7 {[%clk 0:02:39.5]} 20... exd2+ {[%clk 0:01:54.4]} 21. Kxd2
{[%clk 0:02:37.8]} 21... Kxg7 {[%clk 0:01:55]} 22. g3 {[%clk 0:02:33.8]} 22...
Ne5 {[%clk 0:01:54]} 0-1

[Event "Late-Titled-Tuesday-Blitz-February-06-2024"]
[Site "Chess.com"]
[Date "2024.02.06"]
[Round "8"]
[White "babero_gordo"]
[Black "romulocardoso"]
[Result "1-0"]
[WhiteElo "2115"]
[BlackElo "2193"]
[TimeControl "180+1"]
[EndTime "15:25:02 PST"]
[Termination "babero_gordo won by resignation"]

1. e4 {[%clk 0:02:56.1]} 1... c5 {[%clk 0:03:00.3]} 2. d4 {[%clk 0:02:56.1]}
2... cxd4 {[%clk 0:03:00]} 3. c3 {[%clk 0:02:56.5]} 3... dxc3 {[%clk 0:02:59.8]}
4. Nxc3 {[%clk 0:02:57.4]} 4... g6 {[%clk 0:02:58.8]} 5. Bc4 {[%clk 0:02:56.6]}
5... Bg7 {[%clk 0:02:59.1]} 6. Nf3 {[%clk 0:02:56.1]} 6... Nc6 {[%clk
0:02:59.1]} 7. e5 {[%clk 0:02:56.5]} 7... Qa5 {[%clk 0:02:56.8]} 8. O-O {[%clk
0:02:33.8]} 8... Nxe5 {[%clk 0:02:54.3]} 9. Nxe5 {[%clk 0:02:32.6]} 9... Bxe5
{[%clk 0:02:54.5]} 10. Re1 {[%clk 0:02:29.6]} 10... Bg7 {[%clk 0:02:52]} 11. Nd5
{[%clk 0:02:24.5]} 11... e6 {[%clk 0:02:50.6]} 12. Bf4 {[%clk 0:02:17.7]} 12...
Qc5 {[%clk 0:02:07.3]} 13. Nc7+ {[%clk 0:02:12.4]} 13... Kd8 {[%clk 0:02:07.3]}
14. Rc1 {[%clk 0:01:59.4]} 14... e5 {[%clk 0:02:03.5]} 15. Bxf7 {[%clk
0:01:49.1]} 15... Qe7 {[%clk 0:01:54.8]} 16. Bxg8 {[%clk 0:01:40.4]} 16... Rxg8
{[%clk 0:01:54.1]} 17. Nxa8 {[%clk 0:01:39.1]} 1-0

[Event "Late-Titled-Tuesday-Blitz-February-06-2024"]
[Site "Chess.com"]
[Date "2024.02.06"]
[Round "8"]
[White "emeli_chess"]
[Black "UnTucopalaTimba"]
[Result "1-0"]
[WhiteElo "2362"]
[BlackElo "1965"]
[TimeControl "180+1"]
[EndTime "15:25:43 PST"]
[Termination "emeli_chess won by resignation"]

1. d4 {[%clk 0:03:00.9]} 1... Nf6 {[%clk 0:02:58.5]} 2. c4 {[%clk 0:03:01.1]}
2... e6 {[%clk 0:02:56.8]} 3. Nc3 {[%clk 0:03:01.2]} 3... Bb4 {[%clk 0:02:56]}
4. Qc2 {[%clk 0:03:01.4]} 4... O-O {[%clk 0:02:55]} 5. e4 {[%clk 0:03:01.1]}
5... d5 {[%clk 0:02:53.5]} 6. e5 {[%clk 0:03:01]} 6... Ne4 {[%clk 0:02:51.8]} 7.
Bd3 {[%clk 0:03:00.5]} 7... c5 {[%clk 0:02:50.9]} 8. Nf3 {[%clk 0:03:00.3]} 8...
cxd4 {[%clk 0:02:48.7]} 9. Nxd4 {[%clk 0:03:00.4]} 9... Nd7 {[%clk 0:02:41]} 10.
Bf4 {[%clk 0:03:00.1]} 10... Qh4 {[%clk 0:02:28.4]} 11. g3 {[%clk 0:03:00.1]}
11... Qh5 {[%clk 0:02:22.9]} 12. O-O {[%clk 0:02:57.3]} 12... Nxc3 {[%clk
0:02:17.7]} 13. bxc3 {[%clk 0:02:55.7]} 13... Bc5 {[%clk 0:02:14.2]} 14. cxd5
{[%clk 0:02:51.6]} 14... exd5 {[%clk 0:02:11.5]} 15. Rae1 {[%clk 0:02:25.6]}
15... Re8 {[%clk 0:02:00.9]} 16. e6 {[%clk 0:02:20.7]} 16... fxe6 {[%clk
0:01:37.6]} 17. Nxe6 {[%clk 0:02:18.8]} 17... Bb6 {[%clk 0:01:32.8]} 18. Bxh7+
{[%clk 0:02:11.6]} 18... Qxh7 {[%clk 0:01:28.8]} 19. Qxh7+ {[%clk 0:02:11]}
19... Kxh7 {[%clk 0:01:27.9]} 20. Ng5+ {[%clk 0:02:11.2]} 20... Kg6 {[%clk
0:01:23.1]} 21. Rxe8 {[%clk 0:02:10.2]} 21... Nf6 {[%clk 0:01:21.9]} 22. Re7
{[%clk 0:01:54.2]} 22... Bh3 {[%clk 0:01:13.2]} 23. Nxh3 {[%clk 0:01:52.4]} 1-0

[Event "Late-Titled-Tuesday-Blitz-February-06-2024"]
[Site "Chess.com"]
[Date "2024.02.06"]
[Round "8"]
[White "CFalcons8"]
[Black "rionelG"]
[Result "1-0"]
[WhiteElo "2365"]
[BlackElo "2235"]
[TimeControl "180+1"]
[EndTime "15:25:47 PST"]
[Termination "CFalcons8 won by resignation"]

1. d4 {[%clk 0:03:00.2]} 1... d5 {[%clk 0:02:59.5]} 2. c4 {[%clk 0:02:54]} 2...
e6 {[%clk 0:02:59.1]} 3. Nf3 {[%clk 0:02:43.7]} 3... Nf6 {[%clk 0:02:56]} 4. g3
{[%clk 0:02:40.5]} 4... Be7 {[%clk 0:02:55.3]} 5. Bg2 {[%clk 0:02:38.5]} 5...
O-O {[%clk 0:02:55.8]} 6. O-O {[%clk 0:02:34.6]} 6... dxc4 {[%clk 0:02:54.1]} 7.
Qc2 {[%clk 0:02:33.4]} 7... b5 {[%clk 0:02:54.2]} 8. a4 {[%clk 0:02:25.6]} 8...
Bb7 {[%clk 0:02:53.2]} 9. axb5 {[%clk 0:02:24.9]} 9... a6 {[%clk 0:02:53.7]} 10.
bxa6 {[%clk 0:02:18.9]} 10... Nxa6 {[%clk 0:02:54.6]} 11. Qxc4 {[%clk
0:02:11.1]} 11... Bd5 {[%clk 0:02:54]} 12. Qc2 {[%clk 0:02:04.7]} 12... c5
{[%clk 0:02:49.4]} 13. dxc5 {[%clk 0:02:02.4]} 13... Nxc5 {[%clk 0:02:50.2]} 14.
Rxa8 {[%clk 0:02:01.6]} 14... Qxa8 {[%clk 0:02:51.1]} 15. Nc3 {[%clk 0:02:00.8]}
15... Bc6 {[%clk 0:02:41.2]} 16. b4 {[%clk 0:01:58.1]} 16... Nce4 {[%clk
0:02:38.9]} 17. Nxe4 {[%clk 0:01:48.7]} 17... Bxe4 {[%clk 0:02:37.9]} 18. Qb2
{[%clk 0:01:48.7]} 18... Qb7 {[%clk 0:02:31]} 19. Bd2 {[%clk 0:01:47.4]} 19...
Rb8 {[%clk 0:02:17.3]} 20. Rc1 {[%clk 0:01:36.7]} 20... h6 {[%clk 0:02:10.1]}
21. b5 {[%clk 0:01:20.6]} 21... Qxb5 {[%clk 0:02:05.4]} 22. Rc8+ {[%clk
0:01:19.3]} 1-0

[Event "Late-Titled-Tuesday-Blitz-February-06-2024"]
[Site "Chess.com"]
[Date "2024.02.06"]
[Round "8"]
[White "Hikaru"]
[Black "nihalsarin"]
[Result "1/2-1/2"]
[WhiteElo "3331"]
[BlackElo "3124"]
[TimeControl "180+1"]
[EndTime "15:26:16 PST"]
[Termination "Game drawn by repetition"]

1. e4 {[%clk 0:03:00.9]} 1... c6 {[%clk 0:02:59.7]} 2. Nc3 {[%clk 0:02:55.9]}
2... d5 {[%clk 0:03:00.6]} 3. Nf3 {[%clk 0:02:56.6]} 3... dxe4 {[%clk
0:02:55.4]} 4. Nxe4 {[%clk 0:02:57.5]} 4... Nf6 {[%clk 0:02:55.8]} 5. Qe2 {[%clk
0:02:57.4]} 5... Nxe4 {[%clk 0:02:52.6]} 6. Qxe4 {[%clk 0:02:58.3]} 6... Be6
{[%clk 0:02:53.4]} 7. b3 {[%clk 0:02:50.1]} 7... Bd5 {[%clk 0:02:52.1]} 8. Qe3
{[%clk 0:02:50.2]} 8... Nd7 {[%clk 0:02:49.2]} 9. Bb2 {[%clk 0:02:50.2]} 9... e6
{[%clk 0:02:49.3]} 10. Qf4 {[%clk 0:02:28.2]} 10... Nf6 {[%clk 0:02:43.2]} 11.
Ne5 {[%clk 0:02:24.6]} 11... Bd6 {[%clk 0:02:41]} 12. Qg5 {[%clk 0:02:18.1]}
12... O-O {[%clk 0:02:35.2]} 13. Nd7 {[%clk 0:01:57.3]} 13... Nh5 {[%clk
0:02:16.9]} 14. Qxh5 {[%clk 0:01:49.4]} 14... Qxd7 {[%clk 0:02:15.5]} 15. Bxg7
{[%clk 0:00:53.4]} 15... Kxg7 {[%clk 0:02:16.4]} 16. Qg5+ {[%clk 0:00:53.5]}
16... Kh8 {[%clk 0:02:16.2]} 17. Qf6+ {[%clk 0:00:54.4]} 17... Kg8 {[%clk
0:02:16.7]} 18. Qg5+ {[%clk 0:00:54.4]} 18... Kh8 {[%clk 0:02:17.2]} 19. Qf6+
{[%clk 0:00:54.5]} 19... Kg8 {[%clk 0:02:17.7]} 20. Qg5+ {[%clk 0:00:06.2]}
20... Kh8 {[%clk 0:02:16.2]} 1/2-1/2

[Event "Late-Titled-Tuesday-Blitz-February-06-2024"]
[Site "Chess.com"]
[Date "2024.02.06"]
[Round "8"]
[White "Godzillator"]
[Black "pinguino120"]
[Result "0-1"]
[WhiteElo "2376"]
[BlackElo "2280"]
[TimeControl "180+1"]
[EndTime "15:26:31 PST"]
[Termination "pinguino120 won by resignation"]

1. Nf3 {[%clk 0:03:00.9]} 1... g6 {[%clk 0:02:56.6]} 2. d4 {[%clk 0:03:00.2]}
2... Bg7 {[%clk 0:02:56.8]} 3. c3 {[%clk 0:02:59.3]} 3... d5 {[%clk 0:02:55.6]}
4. Bg5 {[%clk 0:02:55.8]} 4... Nf6 {[%clk 0:02:54.5]} 5. Nbd2 {[%clk 0:02:55.5]}
5... O-O {[%clk 0:02:54.3]} 6. e3 {[%clk 0:02:55.5]} 6... c5 {[%clk 0:02:54.6]}
7. Be2 {[%clk 0:02:53.9]} 7... Nc6 {[%clk 0:02:54.5]} 8. O-O {[%clk 0:02:47.9]}
8... Qb6 {[%clk 0:02:54.2]} 9. Qb3 {[%clk 0:02:45.8]} 9... c4 {[%clk 0:02:53.1]}
10. Qxb6 {[%clk 0:02:45.1]} 10... axb6 {[%clk 0:02:54]} 11. a3 {[%clk
0:02:40.2]} 11... b5 {[%clk 0:02:54.1]} 12. Rae1 {[%clk 0:02:39.8]} 12... Bf5
{[%clk 0:02:52.8]} 13. Nh4 {[%clk 0:02:35.7]} 13... Bd7 {[%clk 0:02:49.8]} 14.
h3 {[%clk 0:02:28]} 14... h6 {[%clk 0:02:49.8]} 15. Bxf6 {[%clk 0:02:27.4]}
15... exf6 {[%clk 0:02:47.7]} 16. e4 {[%clk 0:02:24]} 16... Ne7 {[%clk
0:02:39.5]} 17. exd5 {[%clk 0:02:18.7]} 17... Nxd5 {[%clk 0:02:40.4]} 18. Bf3
{[%clk 0:02:18.4]} 18... Bc6 {[%clk 0:02:39.6]} 19. Ne4 {[%clk 0:02:10.2]} 19...
f5 {[%clk 0:02:22.1]} 20. Nd2 {[%clk 0:01:57.7]} 20... Bf6 {[%clk 0:02:18.9]}
21. g3 {[%clk 0:01:56.7]} 21... Bxh4 {[%clk 0:02:13.4]} 22. gxh4 {[%clk
0:01:56.7]} 22... Rfe8 {[%clk 0:02:13.8]} 23. h5 {[%clk 0:01:52.3]} 23... g5
{[%clk 0:02:12.7]} 24. Bg2 {[%clk 0:01:35.5]} 24... Nf4 {[%clk 0:02:10.3]} 25.
Bxc6 {[%clk 0:01:32.4]} 25... bxc6 {[%clk 0:02:11.2]} 26. Nf3 {[%clk 0:01:32]}
26... Nxh3+ {[%clk 0:02:08.1]} 27. Kh2 {[%clk 0:01:31.4]} 27... Nf4 {[%clk
0:02:08.4]} 28. Ne5 {[%clk 0:01:30.7]} 28... Re6 {[%clk 0:02:08.2]} 29. Re3
{[%clk 0:01:24.1]} 29... Rae8 {[%clk 0:02:05.4]} 30. Rfe1 {[%clk 0:01:23.3]}
30... Nd5 {[%clk 0:02:00]} 31. R3e2 {[%clk 0:01:22.1]} 31... f6 {[%clk
0:01:59.8]} 32. f4 {[%clk 0:00:54.7]} 32... Nxf4 {[%clk 0:01:55.5]} 33. Rf2
{[%clk 0:00:47.3]} 33... fxe5 {[%clk 0:01:55.4]} 34. dxe5 {[%clk 0:00:46.5]}
34... Rxe5 {[%clk 0:01:55.6]} 0-1

[Event "Late-Titled-Tuesday-Blitz-February-06-2024"]
[Site "Chess.com"]
[Date "2024.02.06"]
[Round "8"]
[White "Mikayel99"]
[Black "Teidi96"]
[Result "0-1"]
[WhiteElo "2522"]
[BlackElo "2372"]
[TimeControl "180+1"]
[EndTime "15:26:43 PST"]
[Termination "Teidi96 won by checkmate"]

1. d4 {[%clk 0:03:00.9]} 1... Nf6 {[%clk 0:02:52.5]} 2. c4 {[%clk 0:02:57.3]}
2... e6 {[%clk 0:02:52.5]} 3. g3 {[%clk 0:02:56.5]} 3... d5 {[%clk 0:02:53]} 4.
Nf3 {[%clk 0:02:56.2]} 4... Be7 {[%clk 0:02:53.5]} 5. Bg2 {[%clk 0:02:55.9]}
5... O-O {[%clk 0:02:53.8]} 6. O-O {[%clk 0:02:56.6]} 6... dxc4 {[%clk
0:02:52.4]} 7. Ne5 {[%clk 0:02:54.1]} 7... Nc6 {[%clk 0:02:50.9]} 8. Nxc6 {[%clk
0:02:52.1]} 8... bxc6 {[%clk 0:02:51.8]} 9. Na3 {[%clk 0:02:42.3]} 9... Bxa3
{[%clk 0:02:50.6]} 10. bxa3 {[%clk 0:02:43.2]} 10... Rb8 {[%clk 0:02:49.4]} 11.
Qc2 {[%clk 0:02:31.6]} 11... c5 {[%clk 0:02:48.1]} 12. dxc5 {[%clk 0:02:28]}
12... Bb7 {[%clk 0:02:48.2]} 13. Rd1 {[%clk 0:02:26.3]} 13... Qe7 {[%clk
0:02:46.2]} 14. c6 {[%clk 0:02:26.4]} 14... Ba6 {[%clk 0:02:43.2]} 15. Bd2
{[%clk 0:02:23.1]} 15... Rfd8 {[%clk 0:02:41.3]} 16. Bb4 {[%clk 0:02:15.1]}
16... Qe8 {[%clk 0:02:38.2]} 17. Rxd8 {[%clk 0:02:01.6]} 17... Rxd8 {[%clk
0:02:36.6]} 18. Qa4 {[%clk 0:02:01.7]} 18... Bc8 {[%clk 0:02:26.4]} 19. Qxa7
{[%clk 0:01:55.7]} 19... Nd5 {[%clk 0:02:25.5]} 20. Bxd5 {[%clk 0:01:49.6]}
20... exd5 {[%clk 0:02:25.4]} 21. Qxc7 {[%clk 0:01:50.5]} 21... Bh3 {[%clk
0:02:21.6]} 22. Rd1 {[%clk 0:01:23.5]} 22... Rc8 {[%clk 0:02:20.3]} 23. Qe7
{[%clk 0:01:23.7]} 23... Qxc6 {[%clk 0:02:17.2]} 24. e4 {[%clk 0:01:20.2]} 24...
c3 {[%clk 0:01:54.7]} 25. Rxd5 {[%clk 0:01:00.8]} 25... Qxd5 {[%clk 0:01:44]}
26. exd5 {[%clk 0:00:54.4]} 26... c2 {[%clk 0:01:43.9]} 27. d6 {[%clk
0:00:37.2]} 27... c1=Q+ {[%clk 0:01:43.6]} 28. Be1 {[%clk 0:00:37.7]} 28... Qc6
{[%clk 0:01:37.1]} 29. Qh4 {[%clk 0:00:36.8]} 29... Qg2# {[%clk 0:01:36.4]} 0-1

[Event "Late-Titled-Tuesday-Blitz-February-06-2024"]
[Site "Chess.com"]
[Date "2024.02.06"]
[Round "8"]
[White "frequentblunders"]
[Black "abeljusto"]
[Result "1-0"]
[WhiteElo "2153"]
[BlackElo "2058"]
[TimeControl "180+1"]
[EndTime "15:26:52 PST"]
[Termination "frequentblunders won by checkmate"]

1. d3 {[%clk 0:02:54.5]} 1... g6 {[%clk 0:02:56.8]} 2. f4 {[%clk 0:02:55.3]}
2... Bg7 {[%clk 0:02:55.7]} 3. Nf3 {[%clk 0:02:56.2]} 3... d5 {[%clk 0:02:55.5]}
4. Nc3 {[%clk 0:02:56.5]} 4... c5 {[%clk 0:02:55]} 5. e4 {[%clk 0:02:56.2]} 5...
dxe4 {[%clk 0:02:50.5]} 6. dxe4 {[%clk 0:02:57.1]} 6... Qxd1+ {[%clk 0:02:49.8]}
7. Kxd1 {[%clk 0:02:58]} 7... e6 {[%clk 0:02:31.1]} 8. Bd2 {[%clk 0:02:56.3]}
8... Ne7 {[%clk 0:02:27]} 9. Bd3 {[%clk 0:02:53.5]} 9... O-O {[%clk 0:02:26.5]}
10. Ke2 {[%clk 0:02:49.9]} 10... Nbc6 {[%clk 0:02:23.3]} 11. a4 {[%clk
0:02:40.6]} 11... Nb4 {[%clk 0:02:22.3]} 12. h4 {[%clk 0:02:29.5]} 12... Nxd3
{[%clk 0:02:21.6]} 13. cxd3 {[%clk 0:02:29.4]} 13... h5 {[%clk 0:02:21]} 14. e5
{[%clk 0:02:26.9]} 14... Bd7 {[%clk 0:02:18.4]} 15. Ne4 {[%clk 0:02:25]} 15...
b6 {[%clk 0:02:11.2]} 16. b4 {[%clk 0:02:14.3]} 16... cxb4 {[%clk 0:02:09.2]}
17. Bxb4 {[%clk 0:02:13.1]} 17... Rfe8 {[%clk 0:02:07.4]} 18. Bxe7 {[%clk
0:02:03.3]} 18... Rxe7 {[%clk 0:02:06.7]} 19. Rhc1 {[%clk 0:01:58.1]} 19... Rc8
{[%clk 0:01:59.3]} 20. Rxc8+ {[%clk 0:01:43.7]} 20... Bxc8 {[%clk 0:01:59]} 21.
a5 {[%clk 0:01:39]} 21... Rc7 {[%clk 0:01:48.3]} 22. axb6 {[%clk 0:01:26.6]}
22... axb6 {[%clk 0:01:48.1]} 23. Ra8 {[%clk 0:01:19.3]} 23... Bf8 {[%clk
0:01:45]} 24. Nf6+ {[%clk 0:01:07]} 24... Kh8 {[%clk 0:01:43.3]} 25. Ng5 {[%clk
0:00:59.9]} 25... Bg7 {[%clk 0:01:13.6]} 26. Rxc8+ {[%clk 0:00:52.8]} 26... Rxc8
{[%clk 0:01:11.5]} 27. Nxf7# {[%clk 0:00:52.8]} 1-0

[Event "Late-Titled-Tuesday-Blitz-February-06-2024"]
[Site "Chess.com"]
[Date "2024.02.06"]
[Round "8"]
[White "brm72"]
[Black "cristianserban1"]
[Result "1-0"]
[WhiteElo "2645"]
[BlackElo "2522"]
[TimeControl "180+1"]
[EndTime "15:26:56 PST"]
[Termination "brm72 won by resignation"]

1. d4 {[%clk 0:03:00.9]} 1... g6 {[%clk 0:03:00.1]} 2. Nf3 {[%clk 0:03:01.1]}
2... Bg7 {[%clk 0:03:00.6]} 3. c4 {[%clk 0:03:00.4]} 3... d6 {[%clk 0:03:01]} 4.
g3 {[%clk 0:03:01.1]} 4... Bd7 {[%clk 0:02:59.8]} 5. Bg2 {[%clk 0:03:01.7]} 5...
Qc8 {[%clk 0:03:00.5]} 6. h3 {[%clk 0:02:56.5]} 6... Nc6 {[%clk 0:02:56.3]} 7.
Nc3 {[%clk 0:02:55.7]} 7... e5 {[%clk 0:02:56.4]} 8. d5 {[%clk 0:02:50.8]} 8...
Nce7 {[%clk 0:02:54.8]} 9. e4 {[%clk 0:02:49]} 9... f5 {[%clk 0:02:53.7]} 10.
Be3 {[%clk 0:02:47.8]} 10... Nf6 {[%clk 0:02:52.9]} 11. Qd2 {[%clk 0:02:48.1]}
11... O-O {[%clk 0:02:35.7]} 12. Bh6 {[%clk 0:02:39.7]} 12... fxe4 {[%clk
0:02:32.8]} 13. Nh4 {[%clk 0:02:22.1]} 13... Nf5 {[%clk 0:02:21.8]} 14. Bxg7
{[%clk 0:02:03.4]} 14... Kxg7 {[%clk 0:02:16.2]} 15. Nxf5+ {[%clk 0:01:47.2]}
15... gxf5 {[%clk 0:02:15.4]} 16. g4 {[%clk 0:01:44.6]} 16... fxg4 {[%clk
0:01:27.1]} 17. hxg4 {[%clk 0:01:36.7]} 17... Bxg4 {[%clk 0:01:26.1]} 18. Nxe4
{[%clk 0:01:29.2]} 18... Nxe4 {[%clk 0:01:23.8]} 19. Qh6+ {[%clk 0:01:22.4]}
19... Kf7 {[%clk 0:01:19.1]} 20. Qxh7+ {[%clk 0:01:19.6]} 20... Ke8 {[%clk
0:01:15.9]} 21. Bxe4 {[%clk 0:01:17.7]} 21... Qd7 {[%clk 0:01:14.7]} 22. Qg6+
{[%clk 0:01:05]} 22... Kd8 {[%clk 0:01:14.5]} 23. Rh7 {[%clk 0:01:05.2]} 1-0

[Event "Late-Titled-Tuesday-Blitz-February-06-2024"]
[Site "Chess.com"]
[Date "2024.02.06"]
[Round "8"]
[White "igorkovalenko"]
[Black "jcibarra"]
[Result "1-0"]
[WhiteElo "3013"]
[BlackElo "2897"]
[TimeControl "180+1"]
[EndTime "15:27:00 PST"]
[Termination "igorkovalenko won by resignation"]

1. c4 {[%clk 0:03:00.9]} 1... e5 {[%clk 0:02:59.7]} 2. Nc3 {[%clk 0:02:51]} 2...
Nf6 {[%clk 0:02:59]} 3. Nf3 {[%clk 0:02:51.4]} 3... d6 {[%clk 0:02:58.5]} 4. d4
{[%clk 0:02:45.8]} 4... e4 {[%clk 0:02:58.4]} 5. Ng5 {[%clk 0:02:44.3]} 5... Qe7
{[%clk 0:02:59]} 6. g3 {[%clk 0:02:34.7]} 6... h6 {[%clk 0:02:58.3]} 7. Nh3
{[%clk 0:02:35.1]} 7... c6 {[%clk 0:02:58.3]} 8. Bg2 {[%clk 0:02:32]} 8... Bf5
{[%clk 0:02:58.2]} 9. O-O {[%clk 0:02:30.2]} 9... Qd7 {[%clk 0:02:58.3]} 10. Nf4
{[%clk 0:02:30.2]} 10... g5 {[%clk 0:02:57.9]} 11. f3 {[%clk 0:02:24.4]} 11...
exf3 {[%clk 0:02:58.1]} 12. exf3 {[%clk 0:02:20.8]} 12... gxf4 {[%clk
0:02:57.7]} 13. Bxf4 {[%clk 0:02:15.9]} 13... Bg7 {[%clk 0:02:52.9]} 14. Re1+
{[%clk 0:02:15]} 14... Kf8 {[%clk 0:02:53.4]} 15. Qd2 {[%clk 0:02:13.7]} 15...
Na6 {[%clk 0:02:48.7]} 16. g4 {[%clk 0:02:11.1]} 16... Bg6 {[%clk 0:02:46.3]}
17. h4 {[%clk 0:02:08]} 17... h5 {[%clk 0:02:43.2]} 18. g5 {[%clk 0:02:08.1]}
18... Ng8 {[%clk 0:02:39.3]} 19. Re2 {[%clk 0:02:04.8]} 19... Ne7 {[%clk
0:02:37.5]} 20. Rae1 {[%clk 0:02:01.8]} 20... Re8 {[%clk 0:02:02.6]} 21. d5
{[%clk 0:01:55.9]} 21... Bxc3 {[%clk 0:01:27.4]} 22. Qxc3 {[%clk 0:01:52.6]}
22... Kg8 {[%clk 0:01:22.9]} 23. Qf6 {[%clk 0:01:50]} 23... Qf5 {[%clk
0:00:36.5]} 24. Qxf5 {[%clk 0:01:44.8]} 24... Bxf5 {[%clk 0:00:35.8]} 25. Rxe7
{[%clk 0:01:45.2]} 25... Rxe7 {[%clk 0:00:33.4]} 26. Rxe7 {[%clk 0:01:46.1]}
26... cxd5 {[%clk 0:00:33.9]} 27. Bxd6 {[%clk 0:01:40]} 27... d4 {[%clk
0:00:19.4]} 28. Be5 {[%clk 0:01:39.6]} 1-0

[Event "Late-Titled-Tuesday-Blitz-February-06-2024"]
[Site "Chess.com"]
[Date "2024.02.06"]
[Round "8"]
[White "lachesisQ"]
[Black "balachess2006"]
[Result "1-0"]
[WhiteElo "3056"]
[BlackElo "2709"]
[TimeControl "180+1"]
[EndTime "15:27:06 PST"]
[Termination "lachesisQ won by resignation"]

1. e4 {[%clk 0:03:00.9]} 1... c5 {[%clk 0:02:59.8]} 2. Nf3 {[%clk 0:03:00.8]}
2... Nc6 {[%clk 0:02:58.6]} 3. Bb5 {[%clk 0:03:00.5]} 3... g6 {[%clk 0:02:58.3]}
4. O-O {[%clk 0:03:00]} 4... Bg7 {[%clk 0:02:58.5]} 5. Re1 {[%clk 0:03:00.5]}
5... e5 {[%clk 0:02:58.1]} 6. Bxc6 {[%clk 0:02:58.8]} 6... dxc6 {[%clk
0:02:54.6]} 7. Nc3 {[%clk 0:02:58.5]} 7... Qc7 {[%clk 0:02:54]} 8. d3 {[%clk
0:02:58.1]} 8... Nf6 {[%clk 0:02:53.7]} 9. a4 {[%clk 0:02:58.6]} 9... a5 {[%clk
0:02:53.3]} 10. h3 {[%clk 0:02:43.1]} 10... O-O {[%clk 0:02:48.8]} 11. Be3
{[%clk 0:02:43.2]} 11... b6 {[%clk 0:02:48.6]} 12. Qd2 {[%clk 0:02:43.6]} 12...
Re8 {[%clk 0:02:47.1]} 13. Bh6 {[%clk 0:02:43]} 13... Bh8 {[%clk 0:02:40.1]} 14.
b3 {[%clk 0:02:39.9]} 14... Nh5 {[%clk 0:02:39.1]} 15. Kh2 {[%clk 0:02:37.7]}
15... Nf4 {[%clk 0:02:35]} 16. Bxf4 {[%clk 0:02:33.7]} 16... exf4 {[%clk
0:02:35.9]} 17. e5 {[%clk 0:02:33.9]} 17... Rxe5 {[%clk 0:01:50.9]} 18. Rxe5
{[%clk 0:02:02.8]} 18... Bxe5 {[%clk 0:01:49.2]} 19. Nxe5 {[%clk 0:01:50.8]}
19... Qxe5 {[%clk 0:01:47.2]} 20. Re1 {[%clk 0:01:51.5]} 20... Qc7 {[%clk
0:01:18]} 21. Re8+ {[%clk 0:01:48.8]} 21... Kg7 {[%clk 0:01:18.1]} 22. Ne4
{[%clk 0:01:48.8]} 22... Qd7 {[%clk 0:00:55.9]} 23. Qc3+ {[%clk 0:01:48.4]}
23... Qd4 {[%clk 0:00:55.8]} 24. Qxd4+ {[%clk 0:01:48.6]} 24... cxd4 {[%clk
0:00:56.4]} 25. Nd6 {[%clk 0:01:49.5]} 25... Bb7 {[%clk 0:00:52.2]} 26. Re7
{[%clk 0:01:49.6]} 26... Ba6 {[%clk 0:00:51.6]} 27. Rxf7+ {[%clk 0:01:49.2]}
27... Kg8 {[%clk 0:00:52]} 28. Rxf4 {[%clk 0:01:44.9]} 28... Rf8 {[%clk
0:00:38.4]} 29. Kg3 {[%clk 0:01:42.5]} 29... c5 {[%clk 0:00:37.2]} 30. Rxf8+
{[%clk 0:01:40.8]} 30... Kxf8 {[%clk 0:00:38.1]} 31. Kf4 {[%clk 0:01:41.5]}
31... Ke7 {[%clk 0:00:38.2]} 32. Ke5 {[%clk 0:01:41.5]} 32... Kd7 {[%clk
0:00:38.7]} 33. f4 {[%clk 0:01:41.2]} 33... Ke7 {[%clk 0:00:38.1]} 34. g4 {[%clk
0:01:41.2]} 34... Kd7 {[%clk 0:00:34.5]} 35. f5 {[%clk 0:01:40.5]} 35... gxf5
{[%clk 0:00:34.1]} 36. gxf5 {[%clk 0:01:41.4]} 36... Ke7 {[%clk 0:00:34.1]} 37.
f6+ {[%clk 0:01:41.7]} 37... Kf8 {[%clk 0:00:34.6]} 38. Kd5 {[%clk 0:01:41.7]}
1-0